fUSD/lending_fUSD_20250716
["ID","MTS","AMOUNT","RATE_DAILY","PERIOD"]
[372438273,1752645050870,-460.0,0.00021917,2]
[372438274,1752645050879,-1835.25,0.00021917,2]
[372438277,1752645050889,-1158.52,0.00021917,2]
[372438279,1752645050898,-1300.63,0.00021917,2]
[372438280,1752645050908,-460.0,0.00021917,2]
[372438282,1752645050917,-460.0,0.00021917,2]
[372438284,1752645050927,-151.0,0.00021917,2]
[372438287,1752645050936,-460.0,0.00021917,2]
[372438288,1752645050946,-505.15,0.00021917,2]
[372438291,1752645050955,-460.0,0.00021917,2]
[372438292,1752645050966,-579.64,0.00021917,2]
[372438294,1752645050975,-2496.5,0.00021917,2]
[372438297,1752645050985,-489.48,0.00021917,2]
[372438298,1752645050995,-460.0,0.00021917,2]
[372438301,1752645051005,-460.0,0.00021917,2]
[372438303,1752645051015,-460.0,0.00021917,2]
[372438305,1752645051024,-460.0,0.00021917,2]
[372438307,1752645051034,-544.0,0.00021917,2]
[372438308,1752645051043,-460.0,0.00021917,2]
[372438309,1752645051052,-460.0,0.00021917,2]
[372438310,1752645051061,-734.39,0.00021917,2]
[372438311,1752645051070,-460.0,0.00021917,2]
[372438312,1752645051079,-460.0,0.00021917,2]
[372438313,1752645051088,-460.66083189,0.00021917,2]
[372438314,1752645051098,-500.0,0.00021917,2]
[372438315,1752645051107,-500.0,0.00021917,2]
[372438317,1752645051117,-500.0,0.00021917,2]
[372438319,1752645051126,-460.0,0.00021917,2]
[372438321,1752645051135,-500.0,0.00021917,2]
[372438323,1752645051145,-500.0,0.00021917,2]
[372438325,1752645051155,-500.0,0.00021917,2]
[372438327,1752645051164,-2973.95,0.00021917,2]
[372438328,1752645051173,-500.0,0.00021917,2]
[372438330,1752645051182,-460.0,0.00021917,2]
[372438332,1752645051192,-1288.46,0.00021917,2]
[372438334,1752645051201,-500.0,0.00021917,2]
[372438336,1752645051213,-500.0,0.00021917,2]
[372438339,1752645051224,-500.0,0.00021917,2]
[372438341,1752645051234,-470.3,0.00021917,2]
[372438343,1752645051243,-460.0,0.00021917,2]
[372438344,1752645051254,-460.0,0.00021917,2]
[372438345,1752645051263,-484.05,0.00021917,2]
[372438346,1752645051272,-460.0,0.00021917,2]
[372438347,1752645051282,-150.0,0.00021917,2]
[372438348,1752645051292,-460.0,0.00021917,2]
[372438349,1752645051301,-460.0,0.00021917,2]
[372438350,1752645051311,-500.0,0.00021917,2]
[372438351,1752645051320,-500.0,0.00021917,2]
[372438352,1752645051330,-500.0,0.00021917,2]
[372438353,1752645051339,-460.0,0.00021917,2]
[372438354,1752645051349,-500.0,0.00021917,2]
[372438355,1752645051359,-460.0,0.00021917,2]
[372438357,1752645051368,-460.0,0.00021917,2]
[372438358,1752645051378,-1068.57,0.00021917,2]
[372438360,1752645051387,-460.0,0.00021917,2]
[372438362,1752645051396,-1448.6,0.00021917,2]
[372438364,1752645051406,-200.33870257,0.00021917,2]
[372438366,1752645051415,-460.0,0.00021917,2]
[372438368,1752645051424,-605.0,0.00021917,2]
[372438369,1752645051433,-528.04,0.00021917,2]
[372438370,1752645051443,-463.4569856,0.00021917,2]
[372438371,1752645051452,-460.0,0.00021917,2]
[372438372,1752645051462,-460.97342545,0.00021917,2]
[372438373,1752645051472,-462.77998396,0.00021917,2]
[372438374,1752645051481,-151.0,0.00021917,2]
[372438375,1752645051491,-460.0,0.00021917,2]
[372438377,1752645051500,-460.0,0.00021917,2]
[372438379,1752645051510,-460.0,0.00021917,2]
[372438381,1752645051519,-495.76,0.00021917,2]
[372438383,1752645051529,-460.0,0.00021917,2]
[372438385,1752645051539,-460.0,0.00021917,2]
[372438387,1752645051548,-869.4,0.00021917,2]
[372438389,1752645051558,-527.995411,0.00021917,2]
[372438391,1752645051567,-1140.56,0.00021917,2]
[372438393,1752645051577,-1859.79,0.00021917,2]
[372438395,1752645051586,-460.0,0.00021917,2]
[372438397,1752645051595,-998.91,0.00021917,2]
[372438398,1752645051605,-470.96901778,0.00021917,2]
[372438399,1752645051614,-2000.0,0.00021917,2]
[372438400,1752645051623,-498.75,0.00021917,2]
[372438401,1752645051634,-2000.0,0.00021917,2]
[372438402,1752645051644,-1168.48520084,0.00021917,2]
[372438403,1752645051654,-500.0,0.00021917,2]
[372438404,1752645051663,-461.34439915,0.00021917,2]
[372438405,1752645051672,-1469.12,0.00021917,2]
[372438406,1752645051681,-460.0,0.00021917,2]
[372438407,1752645051691,-3076.84,0.00021917,2]
[372438408,1752645051701,-1463.26,0.00021917,2]
[372438409,1752645051710,-460.0,0.00021917,2]
[372438410,1752645051719,-460.0,0.00021917,2]
[372438411,1752645051729,-460.0,0.00021917,2]
[372438412,1752645051739,-515.1,0.00021917,2]
[372438413,1752645051749,-461.72774515,0.00021917,2]
[372438414,1752645051758,-462.42146301,0.00021917,2]
[372438415,1752645051768,-2216.91,0.00021917,2]
[372438416,1752645051778,-324.1903701,0.00021917,2]
[372438417,1752645051788,-1733.0,0.00021917,2]
[372438418,1752645051798,-460.0,0.00021917,2]
[372438419,1752645051806,-460.0,0.00021917,2]
[372438420,1752645051815,-2603.89,0.00021917,2]
[372438421,1752645051825,-460.0,0.00021917,2]
[372438422,1752645051834,-662.18,0.00021917,2]
[372438423,1752645051844,-562.99,0.00021917,2]
[372438424,1752645051853,-460.0,0.00021917,2]
[372438425,1752645051862,-1825.05,0.00021917,2]
[372438426,1752645051872,-460.0,0.00021917,2]
[372438427,1752645051882,-630.53,0.00021917,2]
[372438428,1752645051891,-151.0,0.00021917,2]
[372438429,1752645051900,-460.0,0.00021917,2]
[372438430,1752645051910,-514.43505999,0.00021917,2]
[372438431,1752645051919,-575.83334109,0.00021917,2]
[372438432,1752645051928,-460.0,0.00021917,2]
[372438433,1752645051938,-460.0,0.00021917,2]
[372438434,1752645051947,-152.60062734,0.00021917,2]
[372438435,1752645051957,-958.78,0.00021917,2]
[372438436,1752645051966,-460.0,0.00021917,2]
[372438437,1752645051975,-1273.77,0.00021917,2]
[372438438,1752645051985,-2497.87,0.00021917,2]
[372438439,1752645051995,-460.0,0.00021917,2]
[372438440,1752645052005,-2749.83,0.00021917,2]
[372438441,1752645052014,-795.95,0.00021917,2]
[372438442,1752645052024,-460.0,0.00021917,2]
[372438443,1752645052034,-2560.5,0.00021917,2]
[372438444,1752645052043,-460.0,0.00021917,2]
[372438445,1752645052053,-1171.87,0.00021917,2]
[372438446,1752645052062,-2846.23,0.00021917,2]
[372438447,1752645052072,-460.0,0.00021917,2]
[372438448,1752645052082,-460.0,0.00021917,2]
[372438449,1752645052091,-572.47,0.00021917,2]
[372438450,1752645052100,-460.0,0.00021917,2]
[372438451,1752645052110,-1129.52,0.00021917,2]
[372438452,1752645052119,-491.69,0.00021917,2]
[372438453,1752645052128,-893.17,0.00021917,2]
[372438454,1752645052138,-1060.06,0.00021917,2]
[372438455,1752645052147,-460.0,0.00021917,2]
[372438456,1752645052157,-460.0,0.00021917,2]
[372438457,1752645052166,-1319.22,0.00021917,2]
[372438458,1752645052175,-765.01,0.00021917,2]
[372438459,1752645052184,-2930.32,0.00021917,2]
[372438460,1752645052193,-460.0,0.00021917,2]
[372438461,1752645052202,-460.0,0.00021917,2]
[372438462,1752645052214,-1155.3,0.00021917,2]
[372438463,1752645052224,-460.0,0.00021917,2]
[372438464,1752645052234,-460.0,0.00021917,2]
[372438465,1752645052243,-850.34,0.00021917,2]
[372438466,1752645052252,-640.47,0.00021917,2]
[372438467,1752645052262,-500.0,0.00021917,2]
[372438468,1752645052271,-499.44,0.00021917,2]
[372438469,1752645052280,-2806.72,0.00021917,2]
[372438470,1752645052290,-460.0,0.00021917,2]
[372438471,1752645052300,-151.0,0.00021917,2]
[372438472,1752645052312,-460.0,0.00021917,2]
[372438473,1752645052322,-460.0,0.00021917,2]
[372438474,1752645052334,-151.0,0.00021917,2]
[372438475,1752645052344,-305.11296289,0.00021917,2]
[372438476,1752645052353,-151.0,0.00021917,2]
[372438477,1752645052363,-460.0,0.00021917,2]
[372438478,1752645052372,-431.0,0.00021917,2]
[372438479,1752645052381,-2485.51,0.00021917,2]
[372438480,1752645052390,-463.4,0.00021917,2]
[372438481,1752645052401,-460.0,0.00021917,2]
[372438482,1752645052411,-2116.21,0.00021917,2]
[372438483,1752645052422,-501.19,0.00021917,2]
[372438484,1752645052431,-462.54330658,0.00021917,2]
[372438485,1752645052442,-500.0,0.00021917,2]
[372438486,1752645052451,-1277.24,0.00021917,2]
[372438487,1752645052462,-460.0,0.00021917,2]
[372438488,1752645052474,-460.0,0.00021917,2]
[372438489,1752645052483,-460.0,0.00021917,2]
[372438490,1752645052494,-460.0,0.00021917,2]
[372438491,1752645052503,-460.0,0.00021917,2]
[372438492,1752645052514,-460.0,0.00021917,2]
[372438493,1752645052525,-268.54237932,0.00021917,2]
[372438494,1752645052534,-460.0,0.00021917,2]
[372438495,1752645052543,-460.0,0.00021917,2]
[372438496,1752645052554,-460.0,0.00021917,2]
[372438497,1752645052564,-2913.4,0.00021917,2]
[372438498,1752645052573,-962.25,0.00021917,2]
[372438499,1752645052582,-460.0,0.00021917,2]
[372438500,1752645052592,-1482.96,0.00021917,2]
[372438501,1752645052601,-798.85,0.00021917,2]
[372438502,1752645052611,-671.38,0.00021917,2]
[372438503,1752645052620,-2588.08,0.00021917,2]
[372438504,1752645052629,-460.0,0.00021917,2]
[372438505,1752645052639,-534.94,0.00021917,2]
[372438506,1752645052648,-1403.04,0.00021917,2]
[372438507,1752645052657,-460.0,0.00021917,2]
[372438508,1752645052667,-250.38569707,0.00021917,2]
[372438509,1752645052676,-460.0,0.00021917,2]
[372438510,1752645052686,-2836.92,0.00021917,2]
[372438511,1752645052695,-1729.67,0.00021917,2]
[372438512,1752645052704,-1225.56,0.00021917,2]
[372438513,1752645052713,-1893.57,0.00021917,2]
[372438514,1752645052723,-460.0,0.00021917,2]
[372438515,1752645052732,-460.0,0.00021917,2]
[372438516,1752645052742,-3363.84,0.00021917,2]
[372438517,1752645052751,-460.0,0.00021917,2]
[372438518,1752645052760,-460.0,0.00021917,2]
[372438519,1752645052770,-460.0,0.00021917,2]
[372438520,1752645052780,-460.0,0.00021917,2]
[372438521,1752645052790,-1998.23,0.00021917,2]
[372438522,1752645052799,-993.86,0.00021917,2]
[372438523,1752645052808,-1132.44,0.00021917,2]
[372438524,1752645052817,-1615.28,0.00021917,2]
[372438525,1752645052826,-2034.42,0.00021917,2]
[372438526,1752645052835,-2854.55158779,0.00021917,2]
[372438528,1752645052996,-1175.25841221,0.00021917,2]
[372438529,1752645053005,-460.0,0.00021917,2]
[372438530,1752645053015,-187.15636999,0.00021917,2]
[372438531,1752645053027,-272.84363001,0.00021917,2]
[372438532,1752645053036,-1048.9,0.00021917,2]
[372438533,1752645053046,-462.72357893,0.00021917,2]
[372438534,1752645053055,-460.0,0.00021917,2]
[372438535,1752645053065,-1283.38,0.00021917,2]
[372438536,1752645053075,-460.0,0.00021917,2]
[372438537,1752645053084,-460.0,0.00021917,2]
[372438538,1752645053094,-1406.91299106,0.00021917,2]
[372438539,1752645053111,-319.53700894,0.00021917,2]
[372438540,1752645053120,-216.811874,0.00021917,2]
[372438541,1752645053130,-500.0,0.00021917,2]
[372438542,1752645053140,-500.0,0.00021917,2]
[372438543,1752645053149,-734.07,0.00021917,2]
[372438544,1752645053159,-288.39799015,0.00021917,2]
[372438545,1752645060709,233.64193576,0.00030137,120]
[372438546,1752645070992,864.170333,7.945e-05,2]
[372438548,1752645133395,4125.0624826,0.0003,120]
[372438549,1752645155755,1155.93387609,0.00030136,120]
[372438553,1752645322175,555.0,0.00030136,120]
[372438554,1752645329244,1651.0,0.000301,120]
[372438555,1752645340128,1271.38498889,0.0003,120]
[372438557,1752645426393,159.3,0.00013699,2]
[372438563,1752645485486,500.0,0.00030137,120]
[372438564,1752645532271,500.0,0.0003013,120]
[372438565,1752645544071,500.0,0.0003013,120]
[372438566,1752645559826,500.0,0.00017512,2]
[372438577,1752645795469,523.254845,0.00030129,120]
[372438578,1752645798465,2000.0,0.00030129,120]
[372438579,1752645804647,581.256781,0.00030129,120]
[372438595,1752645988282,2352.02448274,0.0003,120]
[372438596,1752646000415,150.0,0.00030136,120]
[372438597,1752646023114,3224.80282293,0.00030137,120]
[372438651,1752646167477,-1000.0,0.00020574,2]
[372438652,1752646167503,-191.89812188,0.00020575,2]
[372438653,1752646167529,-191.89812188,0.00020607,2]
[372438654,1752646167556,-16416.20375624,0.00020607,2]
[372438655,1752646204580,-709.280141,0.00019804,2]
[372438656,1752646204605,-340.47954527,0.00020589,2]
[372438657,1752646204628,-1016.67624376,0.00020607,2]
[372438658,1752646204653,-265.69,0.00020803,2]
[372438659,1752646204676,-805.09,0.00020804,2]
[372438660,1752646204702,-165.17,0.00020877,2]
[372438661,1752646204743,-170.16,0.00020931,2]
[372438662,1752646204784,-300.0,0.00020986,2]
[372438663,1752646204808,-1200.0,0.00020986,2]
[372438664,1752646204830,-500.0,0.00020987,2]
[372438665,1752646204853,-500.0,0.00020987,2]
[372438666,1752646204876,-500.0,0.00020987,2]
[372438667,1752646204899,-500.0,0.00020987,2]
[372438668,1752646204924,-500.0,0.00020987,2]
[372438669,1752646204947,-500.0,0.00020987,2]
[372438670,1752646204970,-500.0,0.00020987,2]
[372438671,1752646204993,-500.0,0.00020987,2]
[372438672,1752646205019,-500.0,0.00020987,2]
[372438673,1752646205040,-390.26163293,0.00020987,2]
[372438674,1752646205062,-137.19243704,0.00020987,2]
[372438723,1752646232770,-362.80756296,0.00020987,2]
[372438725,1752646232781,-500.0,0.00020987,2]
[372438727,1752646232789,-436.95212331,0.00020987,2]
[372438730,1752646232813,-63.04787669,0.00020987,2]
[372438732,1752646232823,-500.0,0.00020987,2]
[372438734,1752646232833,-500.0,0.00020987,2]
[372438736,1752646232842,-433.90101108,0.00020987,2]
[372438749,1752646232950,-66.09898892,0.00020987,2]
[372438750,1752646232960,-151.0,0.00020987,2]
[372438752,1752646232971,-500.0,0.00020987,2]
[372438754,1752646232982,-151.0,0.00020987,2]
[372438756,1752646232993,-500.0,0.00020987,2]
[372438758,1752646233005,-151.0,0.00020987,2]
[372438760,1752646233015,-500.0,0.00020987,2]
[372438762,1752646233024,-151.0,0.00020987,2]
[372438764,1752646233034,-152.80986567,0.00020987,2]
[372438766,1752646233043,-500.0,0.00020987,2]
[372438768,1752646233053,-151.0,0.00020987,2]
[372438770,1752646233063,-151.0,0.00020987,2]
[372438772,1752646233072,-500.0,0.00020987,2]
[372438774,1752646233084,-151.0,0.00020987,2]
[372438776,1752646233093,-94.24045206,0.00020987,2]
[372438778,1752646233107,-447.0548506,0.00020987,2]
[372438780,1752646233117,-151.0,0.00020987,2]
[372438782,1752646233126,-7.50746025,0.00020987,2]
[372438785,1752646233139,-143.49253975,0.00020987,2]
[372438787,1752646233149,-161.9130946,0.00020987,2]
[372438789,1752646233158,-207.4,0.00020987,2]
[372438791,1752646233168,-1408.28659628,0.00021,2]
[372438793,1752646233180,-2002.6817835,0.00021,2]
[372438795,1752646233191,-848.48243142,0.00021,2]
[372438797,1752646233202,-611.06280448,0.00021,2]
[372439123,1752646237923,-136.79530718,0.00021,2]
[372439124,1752646237933,-1001.0,0.00021,2]
[372439125,1752646237943,-152.0,0.00021031,3]
[372439126,1752646237953,-660.46520849,0.00021052,2]
[372439127,1752646237964,-3000.0,0.00021054,7]
[372439128,1752646237973,-1465.16473439,0.00021151,2]
[372439129,1752646237984,-5904.43526394,0.00021151,2]
[372439130,1752646237994,-519.0,0.00021159,2]
[372439131,1752646238003,-164.648037,0.00021478,8]
[372439132,1752646238015,-655.0,0.000216,2]
[372439133,1752646238025,-4978.88068428,0.000217,2]
[372439134,1752646238035,-1000.0,0.00021781,2]
[372439135,1752646238045,-660.46520849,0.00021799,2]
[372439136,1752646238055,-272.52580529,0.000218,2]
[372439137,1752646238066,-167.43387742,0.00021806,2]
[372439138,1752646238076,-166.58095424,0.00021816,2]
[372439139,1752646238088,-157.13513858,0.00021817,2]
[372439140,1752646238098,-210.2159651,0.00021817,2]
[372439141,1752646238120,-62.30984015,0.00021817,2]
[372439142,1752646238129,-272.52580525,0.00021834,2]
[372439143,1752646238139,-150.0,0.00021835,2]
[372439144,1752646238149,-272.52580525,0.00021851,2]
[372439145,1752646238159,-210.72748344,0.00021857,2]
[372439146,1752646238169,-458.6951431,0.00021857,2]
[372439147,1752646238179,-272.52580525,0.00021868,2]
[372439148,1752646238188,-272.52580525,0.00021886,2]
[372439149,1752646238198,-708.935,0.00021892,2]
[372439150,1752646238208,-250.0,0.00021894,2]
[372439151,1752646238218,-500.0,0.00021899,2]
[372439152,1752646238227,-649.21370611,0.00021899,2]
[372439153,1752646238237,-500.0,0.00021899,2]
[372439154,1752646238246,-500.0,0.00021899,2]
[372439155,1752646238256,-500.0,0.00021899,2]
[372439156,1752646238266,-500.0,0.00021899,2]
[372439157,1752646238275,-500.0,0.00021899,2]
[372439158,1752646238285,-20000.0,0.000219,4]
[372439159,1752646238295,-2000.0,0.000219,2]
[372439160,1752646238304,-628.53,0.000219,2]
[372439161,1752646238314,-197249.58298687,0.000219,2]
[372439162,1752646238325,-378.0,0.000219,2]
[372439163,1752646238335,-239.0,0.000219,2]
[372439165,1752646238344,-2620.86497555,0.000219,6]
[372439167,1752646238355,-272.52580525,0.00021903,2]
[372439169,1752646238364,-156.6748047,0.00021906,2]
[372439171,1752646238373,-5745.3622025,0.00021906,2]
[372439173,1752646238383,-3081.7026101,0.00021906,2]
[372439175,1752646238393,-38428.0183023,0.00021906,2]
[372439177,1752646238402,-5653.8242554,0.00021907,2]
[372439179,1752646238412,-150.0,0.00021913,2]
[372439181,1752646238421,-500.0,0.00021916,2]
[372439183,1752646238431,-171.21399926,0.00021916,2]
[372439185,1752646238440,-382.97446519,0.00021916,2]
[372439187,1752646238450,-92798.01074361,0.00021916,2]
[372439189,1752646238459,-2000.0,0.00021916,2]
[372439190,1752646238469,-2000.0,0.00021916,2]
[372439192,1752646238479,-2000.0,0.00021916,2]
[372439194,1752646238489,-2000.0,0.00021916,2]
[372439196,1752646238499,-1395.61936891,0.00021916,2]
[372439198,1752646238509,-6846.66,0.00021916,2]
[372439200,1752646238518,-21051.35200332,0.00021917,2]
[372439202,1752646238527,-1265.28167065,0.00021917,2]
[372439204,1752646238537,-460.0,0.00021917,2]
[372439206,1752646238546,-460.0,0.00021917,2]
[372439208,1752646238556,-582.49,0.00021917,2]
[372439210,1752646238565,-460.0,0.00021917,2]
[372439212,1752646238574,-460.0,0.00021917,2]
[372439214,1752646238584,-460.0,0.00021917,2]
[372439216,1752646238593,-460.0,0.00021917,2]
[372439218,1752646238603,-460.0,0.00021917,2]
[372439220,1752646238613,-460.0,0.00021917,2]
[372439223,1752646238627,-520.62,0.00021917,2]
[372439225,1752646238638,-460.0,0.00021917,2]
[372439227,1752646238648,-460.0,0.00021917,2]
[372439229,1752646238658,-460.0,0.00021917,2]
[372439231,1752646238668,-500.0,0.00021917,2]
[372439233,1752646238678,-510.02,0.00021917,2]
[372439235,1752646238687,-463.54386585,0.00021917,2]
[372439237,1752646238697,-670.66,0.00021917,2]
[372439239,1752646238707,-460.0,0.00021917,2]
[372439241,1752646238717,-460.0,0.00021917,2]
[372439243,1752646238726,-460.0,0.00021917,2]
[372439245,1752646238736,-460.0,0.00021917,2]
[372439247,1752646238746,-460.0,0.00021917,2]
[372439249,1752646238755,-460.0,0.00021917,2]
[372439251,1752646238765,-460.0,0.00021917,2]
[372439254,1752646238775,-726.38,0.00021917,2]
[372439255,1752646238785,-460.0,0.00021917,2]
[372439258,1752646238794,-460.0,0.00021917,2]
[372439260,1752646238805,-460.0,0.00021917,2]
[372439262,1752646238815,-152.334035,0.00021917,2]
[372439264,1752646238824,-460.0,0.00021917,2]
[372439266,1752646238834,-1000.0,0.00021917,2]
[372439268,1752646238843,-460.0,0.00021917,2]
[372439270,1752646238854,-544.63692221,0.00021917,2]
[372439272,1752646238864,-460.0,0.00021917,2]
[372439274,1752646238874,-460.0,0.00021917,2]
[372439275,1752646238884,-460.0,0.00021917,2]
[372439278,1752646238894,-151.0,0.00021917,2]
[372439279,1752646238904,-151.0,0.00021917,2]
[372439281,1752646238913,-469.96,0.00021917,2]
[372439283,1752646238923,-460.0,0.00021917,2]
[372439285,1752646238934,-1115.77,0.00021917,2]
[372439288,1752646238944,-476.42212776,0.00021917,2]
[372439290,1752646238953,-220.02074381,0.00021917,2]
[372439291,1752646238963,-460.0,0.00021917,2]
[372439294,1752646238973,-152.847074,0.00021917,2]
[372439296,1752646238982,-816.04,0.00021917,2]
[372439298,1752646238992,-207.12756856,0.00021917,2]
[372439300,1752646239002,-460.0,0.00021917,2]
[372439302,1752646239019,-460.0,0.00021917,2]
[372439304,1752646239029,-460.0,0.00021917,2]
[372439305,1752646239038,-460.0,0.00021917,2]
[372439308,1752646239048,-460.0,0.00021917,2]
[372439309,1752646239058,-460.0,0.00021917,2]
[372439312,1752646239068,-461.23154058,0.00021917,2]
[372439314,1752646239078,-460.0,0.00021917,2]
[372439316,1752646239089,-460.0,0.00021917,2]
[372439318,1752646239100,-248.96763861,0.00021917,2]
[372439320,1752646239110,-151.0,0.00021917,2]
[372439322,1752646239120,-151.0,0.00021917,2]
[372439324,1752646239130,-151.0,0.00021917,2]
[372439326,1752646239139,-460.0,0.00021917,2]
[372439328,1752646239149,-151.0,0.00021917,2]
[372439330,1752646239159,-151.0,0.00021917,2]
[372439332,1752646239168,-460.0,0.00021917,2]
[372439334,1752646239178,-492.07088335,0.00021917,2]
[372439336,1752646239188,-502.47966585,0.00021917,2]
[372439338,1752646239197,-573.38,0.00021917,2]
[372439340,1752646239207,-479.56,0.00021917,2]
[372439342,1752646239217,-460.0,0.00021917,2]
[372439344,1752646239227,-653.05,0.00021917,2]
[372439346,1752646239236,-151.0,0.00021917,2]
[372439348,1752646239246,-151.0,0.00021917,2]
[372439350,1752646239255,-465.48,0.00021917,2]
[372439352,1752646239265,-151.0,0.00021917,2]
[372439354,1752646239275,-151.0,0.00021917,2]
[372439356,1752646239284,-151.0,0.00021917,2]
[372439358,1752646239294,-151.0,0.00021917,2]
[372439360,1752646239304,-167.050915,0.00021917,2]
[372439362,1752646239314,-460.0,0.00021917,2]
[372439364,1752646239324,-460.0,0.00021917,2]
[372439366,1752646239334,-460.0,0.00021917,2]
[372439369,1752646239351,-460.0,0.00021917,2]
[372439371,1752646239363,-460.0,0.00021917,2]
[372439373,1752646239377,-460.0,0.00021917,2]
[372439374,1752646239390,-460.0,0.00021917,2]
[372439377,1752646239400,-1319.07,0.00021917,2]
[372439379,1752646239411,-460.0,0.00021917,2]
[372439381,1752646239420,-460.0,0.00021917,2]
[372439383,1752646239430,-630.58,0.00021917,2]
[372439385,1752646239440,-463.25725605,0.00021917,2]
[372439387,1752646239450,-467.14804141,0.00021917,2]
[372439389,1752646239459,-151.0,0.00021917,2]
[372439391,1752646239470,-151.0,0.00021917,2]
[372439393,1752646239480,-151.0,0.00021917,2]
[372439395,1752646239490,-151.0,0.00021917,2]
[372439397,1752646239500,-151.0,0.00021917,2]
[372439399,1752646239511,-151.0,0.00021917,2]
[372439401,1752646239521,-151.0,0.00021917,2]
[372439403,1752646239531,-151.0,0.00021917,2]
[372439405,1752646239540,-151.0,0.00021917,2]
[372439407,1752646239550,-460.0,0.00021917,2]
[372439409,1752646239560,-151.0,0.00021917,2]
[372439411,1752646239570,-151.0,0.00021917,2]
[372439413,1752646239580,-791.54,0.00021917,2]
[372439415,1752646239590,-258.414516,0.00021917,2]
[372439417,1752646239599,-460.0,0.00021917,2]
[372439420,1752646239610,-151.0,0.00021917,2]
[372439422,1752646239620,-151.0,0.00021917,2]
[372439424,1752646239630,-151.0,0.00021917,2]
[372439426,1752646239640,-270.62328876,0.00021917,2]
[372439427,1752646239650,-151.0,0.00021917,2]
[372439430,1752646239660,-151.0,0.00021917,2]
[372439432,1752646239669,-237.754216,0.00021917,2]
[372439434,1752646239679,-460.0,0.00021917,2]
[372439436,1752646239688,-879.26,0.00021917,2]
[372439438,1752646239698,-462.09852347,0.00021917,2]
[372439440,1752646239707,-835.21,0.00021917,2]
[372439442,1752646239717,-460.0,0.00021917,2]
[372439444,1752646239726,-460.0,0.00021917,2]
[372439446,1752646239736,-179.65838813,0.00021917,2]
[372439448,1752646239746,-460.0,0.00021917,2]
[372439450,1752646239756,-460.0,0.00021917,2]
[372439452,1752646239765,-460.0,0.00021917,2]
[372439454,1752646239775,-460.0,0.00021917,2]
[372439456,1752646239785,-483.64,0.00021917,2]
[372439458,1752646239795,-596.2,0.00021917,2]
[372439460,1752646239804,-460.0,0.00021917,2]
[372439462,1752646239814,-614.63,0.00021917,2]
[372439464,1752646239824,-460.0,0.00021917,2]
[372439466,1752646239833,-947.9,0.00021917,2]
[372439468,1752646239843,-460.0,0.00021917,2]
[372439470,1752646239854,-460.0,0.00021917,2]
[372439472,1752646239864,-1138.48,0.00021917,2]
[372439475,1752646239874,-331.86082138,0.00021917,2]
[372439477,1752646239883,-460.0,0.00021917,2]
[372439479,1752646239893,-548.13,0.00021917,2]
[372439481,1752646239902,-876.39,0.00021917,2]
[372439483,1752646239912,-460.0,0.00021917,2]
[372439485,1752646239922,-460.0,0.00021917,2]
[372439487,1752646239932,-460.0,0.00021917,2]
[372439489,1752646239941,-871.02,0.00021917,2]
[372439491,1752646239951,-460.0,0.00021917,2]